[Event "Titled Tuesday Blitz August 1 Early 2023"]
[White "Carrasco Miranda, Andres"]
[Black "Miguelitro69"]
[WhiteFideId "3405990"]
[WhiteElo "2440"]
[BlackElo "2322"]
[Result "1-0"]
[Round "10"]
[TimeControl "180+1"]
[Date "2023.08.01"]
[WhiteClock "0:00:49"]
[BlackClock "0:00:11"]
[Board "132"]

1. d4 {[%clk 0:02:56]}  d5 {[%clk 0:03:00]} 2. c4 {[%clk 0:02:55]}  e6 {[%clk 0:03:00]} 3. Nf3 {[%clk 0:02:54]}  Nf6 {[%clk 0:03:00]} 4. g3 {[%clk 0:02:54]}  g6 {[%clk 0:03:00]} 5. Bg2 {[%clk 0:02:54]}  Bg7 {[%clk 0:03:00]} 6. O-O {[%clk 0:02:55]}  O-O {[%clk 0:03:00]} 7. Qc2 {[%clk 0:02:55]}  c6 {[%clk 0:03:00]} 8. Nbd2 {[%clk 0:02:54]}  Nbd7 {[%clk 0:03:00]} 9. Rd1 {[%clk 0:02:54]}  b6 {[%clk 0:02:55]} 10. e4 {[%clk 0:02:52]}  dxe4 {[%clk 0:02:52]} 11. Nxe4 {[%clk 0:02:53]}  Nxe4 {[%clk 0:02:52]} 12. Qxe4 {[%clk 0:02:54]}  Bb7 {[%clk 0:02:52]} 13. Qc2 {[%clk 0:02:51]}  Qe7 {[%clk 0:02:46]} 14. Bg5 {[%clk 0:02:50]}  f6 {[%clk 0:02:32]} 15. Be3 {[%clk 0:02:47]}  e5 {[%clk 0:02:31]} 16. dxe5 {[%clk 0:02:43]}  fxe5 {[%clk 0:02:24]} 17. Nd2 {[%clk 0:02:12]}  Rad8 {[%clk 0:02:18]} 18. a4 {[%clk 0:02:09]}  Nf6 {[%clk 0:02:12]} 19. Ne4 {[%clk 0:01:57]}  Nxe4 {[%clk 0:01:57]} 20. Qxe4 {[%clk 0:01:58]}  Rf7 {[%clk 0:01:50]} 21. a5 {[%clk 0:01:35]}  Rxd1+ {[%clk 0:01:27]} 22. Rxd1 {[%clk 0:01:36]}  bxa5 {[%clk 0:01:27]} 23. Bxa7 {[%clk 0:01:25]}  c5 {[%clk 0:01:01]} 24. Qxb7 {[%clk 0:01:23]}  Qxb7 {[%clk 0:01:01]} 25. Rd8+ {[%clk 0:01:23]}  Bf8 {[%clk 0:00:28]} 26. Bxb7 {[%clk 0:01:21]}  Rxb7 {[%clk 0:00:29]} 27. Bxc5 {[%clk 0:01:22]}  Rf7 {[%clk 0:00:29]} 28. Kf1 {[%clk 0:01:07]}  Kg7 {[%clk 0:00:26]} 29. Bxf8+ {[%clk 0:01:07]}  Rxf8 {[%clk 0:00:27]} 30. Rxf8 {[%clk 0:01:07]}  Kxf8 {[%clk 0:00:28]} 31. Ke2 {[%clk 0:01:08]}  Ke7 {[%clk 0:00:29]} 32. Kd3 {[%clk 0:01:04]}  Kd6 {[%clk 0:00:28]} 33. Kc3 {[%clk 0:01:04]}  Kc5 {[%clk 0:00:27]} 34. b3 {[%clk 0:01:05]}  g5 {[%clk 0:00:25]} 35. f3 {[%clk 0:00:55]}  h5 {[%clk 0:00:22]} 36. h3 {[%clk 0:00:55]}  h4 {[%clk 0:00:20]} 37. g4 {[%clk 0:00:51]}  Kc6 {[%clk 0:00:16]} 38. b4 {[%clk 0:00:52]}  a4 {[%clk 0:00:12]} 39. Kb2 {[%clk 0:00:49]}  e4 {[%clk 0:00:11]} 40. fxe4 {[%clk 0:00:49]} 1-0


[Site "https://www.chess.com"]

[Event "Titled Tuesday Blitz August 1 Early 2023"]
[White "Bogaudinov, Rushan"]
[Black "Acikel, Mert"]
[WhiteFideId "4129288"]
[BlackFideId "12956465"]
[WhiteElo "2426"]
[BlackElo "2317"]
[Result "1-0"]
[Round "10"]
[TimeControl "180+1"]
[Date "2023.08.01"]
[WhiteClock "0:02:09"]
[BlackClock "0:01:09"]
[Board "133"]

1. d4 {[%clk 0:03:00]}  d5 {[%clk 0:02:59]} 2. g3 {[%clk 0:03:01]}  Nf6 {[%clk 0:02:58]} 3. Bg2 {[%clk 0:03:01]}  e6 {[%clk 0:02:59]} 4. c3 {[%clk 0:03:02]}  Be7 {[%clk 0:02:59]} 5. Nd2 {[%clk 0:03:02]}  O-O {[%clk 0:03:00]} 6. Ngf3 {[%clk 0:03:03]}  b6 {[%clk 0:02:58]} 7. O-O {[%clk 0:03:02]}  Bb7 {[%clk 0:02:58]} 8. a4 {[%clk 0:03:03]}  c5 {[%clk 0:02:58]} 9. Ne5 {[%clk 0:03:00]}  Nbd7 {[%clk 0:02:53]} 10. Ndf3 {[%clk 0:02:59]}  Rc8 {[%clk 0:02:50]} 11. Bf4 {[%clk 0:02:59]}  Re8 {[%clk 0:02:45]} 12. Qb3 {[%clk 0:02:56]}  Ne4 {[%clk 0:02:27]} 13. Rfd1 {[%clk 0:02:53]}  Bf6 {[%clk 0:02:14]} 14. a5 {[%clk 0:02:52]}  c4 {[%clk 0:01:50]} 15. Qa4 {[%clk 0:02:46]}  Nxe5 {[%clk 0:01:35]} 16. dxe5 {[%clk 0:02:46]}  Be7 {[%clk 0:01:34]} 17. Nd4 {[%clk 0:02:46]}  Nc5 {[%clk 0:01:32]} 18. Qc2 {[%clk 0:02:41]}  g6 {[%clk 0:01:30]} 19. axb6 {[%clk 0:02:38]}  Qxb6 {[%clk 0:01:29]} 20. h4 {[%clk 0:02:35]}  Nb3 {[%clk 0:01:25]} 21. Nxb3 {[%clk 0:02:33]}  Qxb3 {[%clk 0:01:25]} 22. Qxb3 {[%clk 0:02:33]}  cxb3 {[%clk 0:01:25]} 23. Rxa7 {[%clk 0:02:33]}  Bc6 {[%clk 0:01:24]} 24. Be3 {[%clk 0:02:26]}  Rb8 {[%clk 0:01:22]} 25. Rda1 {[%clk 0:02:24]}  Bb5 {[%clk 0:01:22]} 26. Bf1 {[%clk 0:02:21]}  Bd8 {[%clk 0:01:21]} 27. Bd4 {[%clk 0:02:21]}  Bb6 {[%clk 0:01:17]} 28. Bxb6 {[%clk 0:02:20]}  Rxb6 {[%clk 0:01:18]} 29. Rc7 {[%clk 0:02:14]}  Bc4 {[%clk 0:01:11]} 30. Raa7 {[%clk 0:02:12]}  Rf8 {[%clk 0:01:12]} 31. e3 {[%clk 0:02:12]}  Bxf1 {[%clk 0:01:10]} 32. Kxf1 {[%clk 0:02:13]}  Rb5 {[%clk 0:01:11]} 33. Ke2 {[%clk 0:02:11]}  Kh8 {[%clk 0:01:09]} 34. Rxf7 {[%clk 0:02:09]} 1-0


[Site "https://www.chess.com"]

[Event "Titled Tuesday Blitz August 1 Early 2023"]
[White "Cheer_Down"]
[Black "Ferro, Mario"]
[BlackFideId "810290"]
[WhiteElo "2411"]
[BlackElo "2316"]
[Result "0-1"]
[Round "10"]
[TimeControl "180+1"]
[Date "2023.08.01"]
[WhiteClock "0:00:58"]
[BlackClock "0:02:40"]
[Board "134"]

1. e4 {[%clk 0:02:54]}  c5 {[%clk 0:03:00]} 2. Nf3 {[%clk 0:02:54]}  d6 {[%clk 0:03:00]} 3. Bb5+ {[%clk 0:02:53]}  Bd7 {[%clk 0:03:00]} 4. Bxd7+ {[%clk 0:02:53]}  Qxd7 {[%clk 0:03:01]} 5. c4 {[%clk 0:02:53]}  Nf6 {[%clk 0:03:00]} 6. Nc3 {[%clk 0:02:53]}  g6 {[%clk 0:03:01]} 7. d4 {[%clk 0:02:53]}  cxd4 {[%clk 0:03:00]} 8. Nxd4 {[%clk 0:02:54]}  Bg7 {[%clk 0:03:01]} 9. f3 {[%clk 0:02:55]}  O-O {[%clk 0:03:01]} 10. Be3 {[%clk 0:02:55]}  Rc8 {[%clk 0:03:02]} 11. b3 {[%clk 0:02:54]}  e6 {[%clk 0:02:57]} 12. Rc1 {[%clk 0:02:51]}  d5 {[%clk 0:02:57]} 13. cxd5 {[%clk 0:02:49]}  exd5 {[%clk 0:02:58]} 14. e5 {[%clk 0:02:48]}  Ne8 {[%clk 0:02:55]} 15. f4 {[%clk 0:02:48]}  Nc6 {[%clk 0:02:55]} 16. O-O {[%clk 0:02:44]}  Nxd4 {[%clk 0:02:54]} 17. Bxd4 {[%clk 0:02:44]}  Nc7 {[%clk 0:02:55]} 18. Ne2 {[%clk 0:02:14]}  Ne6 {[%clk 0:02:54]} 19. Qd2 {[%clk 0:02:13]}  Bf8 {[%clk 0:02:52]} 20. g3 {[%clk 0:02:11]}  Qb5 {[%clk 0:02:52]} 21. Kg2 {[%clk 0:02:07]}  Rc6 {[%clk 0:02:52]} 22. Nc3 {[%clk 0:01:57]}  Qb4 {[%clk 0:02:47]} 23. Rfd1 {[%clk 0:01:46]}  Qxd4 {[%clk 0:02:39]} 24. Qxd4 {[%clk 0:01:45]}  Nxd4 {[%clk 0:02:40]} 25. Rxd4 {[%clk 0:00:58]}  Rac8 {[%clk 0:02:40]} 0-1


[Site "https://www.chess.com"]

[Event "Titled Tuesday Blitz August 1 Early 2023"]
[White "Ziatdinov, Raset"]
[Black "Silva Lucena, Cristian"]
[WhiteFideId "2015323"]
[BlackFideId "2232588"]
[WhiteElo "2300"]
[BlackElo "2397"]
[Result "0-1"]
[Round "10"]
[TimeControl "180+1"]
[Date "2023.08.01"]
[WhiteClock "0:00:03"]
[BlackClock "0:00:22"]
[Board "135"]

1. e4 {[%clk 0:02:57]}  c6 {[%clk 0:02:59]} 2. d4 {[%clk 0:02:56]}  d5 {[%clk 0:02:59]} 3. Nc3 {[%clk 0:02:56]}  dxe4 {[%clk 0:02:59]} 4. Nxe4 {[%clk 0:02:55]}  Nf6 {[%clk 0:03:00]} 5. Nxf6+ {[%clk 0:02:51]}  exf6 {[%clk 0:03:01]} 6. c3 {[%clk 0:02:52]}  Bd6 {[%clk 0:03:01]} 7. Bd3 {[%clk 0:02:52]}  O-O {[%clk 0:03:01]} 8. Qc2 {[%clk 0:02:53]}  Re8+ {[%clk 0:03:02]} 9. Ne2 {[%clk 0:02:53]}  h5 {[%clk 0:03:03]} 10. Bd2 {[%clk 0:02:52]}  Nd7 {[%clk 0:03:02]} 11. O-O-O {[%clk 0:02:51]}  Nf8 {[%clk 0:03:03]} 12. f3 {[%clk 0:02:44]}  Be6 {[%clk 0:03:03]} 13. Nf4 {[%clk 0:02:41]}  Bxa2 {[%clk 0:02:57]} 14. c4 {[%clk 0:02:41]}  b5 {[%clk 0:02:52]} 15. c5 {[%clk 0:02:29]}  Bc7 {[%clk 0:02:43]} 16. Qc3 {[%clk 0:01:32]}  Bxf4 {[%clk 0:02:29]} 17. Bxf4 {[%clk 0:01:30]}  Bd5 {[%clk 0:02:30]} 18. Bb1 {[%clk 0:01:19]}  a5 {[%clk 0:02:25]} 19. Qd3 {[%clk 0:01:16]}  g6 {[%clk 0:02:25]} 20. g4 {[%clk 0:01:15]}  Bc4 {[%clk 0:02:23]} 21. Qc2 {[%clk 0:01:14]}  Re2 {[%clk 0:02:22]} 22. Rd2 {[%clk 0:01:11]}  Rxd2 {[%clk 0:02:19]} 23. Qxd2 {[%clk 0:01:11]}  h4 {[%clk 0:02:14]} 24. g5 {[%clk 0:01:05]}  f5 {[%clk 0:02:12]} 25. Qf2 {[%clk 0:01:04]}  Ne6 {[%clk 0:02:09]} 26. Be5 {[%clk 0:01:03]}  Qxg5+ {[%clk 0:02:09]} 27. f4 {[%clk 0:01:03]}  Qh5 {[%clk 0:02:07]} 28. Rg1 {[%clk 0:01:02]}  a4 {[%clk 0:01:57]} 29. Bc2 {[%clk 0:00:59]}  a3 {[%clk 0:01:57]} 30. b3 {[%clk 0:00:57]}  a2 {[%clk 0:01:56]} 31. Kb2 {[%clk 0:00:57]}  Bd5 {[%clk 0:01:54]} 32. Ra1 {[%clk 0:00:46]}  Qg4 {[%clk 0:01:52]} 33. Rxa2 {[%clk 0:00:44]}  Rxa2+ {[%clk 0:01:51]} 34. Kxa2 {[%clk 0:00:45]}  Kf8 {[%clk 0:01:43]} 35. Kb2 {[%clk 0:00:45]}  Ke7 {[%clk 0:01:43]} 36. Bd6+ {[%clk 0:00:36]}  Kd7 {[%clk 0:01:38]} 37. Qe1 {[%clk 0:00:34]}  h3 {[%clk 0:01:07]} 38. Qa5 {[%clk 0:00:34]}  Qh4 {[%clk 0:01:06]} 39. Qa7+ {[%clk 0:00:31]}  Ke8 {[%clk 0:01:07]} 40. Qb8+ {[%clk 0:00:31]}  Nd8 {[%clk 0:01:07]} 41. Be5 {[%clk 0:00:23]}  Qe7 {[%clk 0:01:05]} 42. Bd6 {[%clk 0:00:16]}  Qd7 {[%clk 0:01:02]} 43. Qa8 {[%clk 0:00:14]}  f6 {[%clk 0:00:58]} 44. Qa1 {[%clk 0:00:13]}  Kf7 {[%clk 0:00:58]} 45. Qe1 {[%clk 0:00:13]}  Ne6 {[%clk 0:00:58]} 46. Qh4 {[%clk 0:00:13]}  Ng7 {[%clk 0:00:54]} 47. Qxh3 {[%clk 0:00:13]}  Qe6 {[%clk 0:00:54]} 48. Qh7 {[%clk 0:00:13]}  Qe3 {[%clk 0:00:53]} 49. Qh8 {[%clk 0:00:08]}  Qxd4+ {[%clk 0:00:52]} 50. Kb1 {[%clk 0:00:08]}  Be4 {[%clk 0:00:42]} 51. Qf8+ {[%clk 0:00:08]}  Ke6 {[%clk 0:00:41]} 52. Qe7+ {[%clk 0:00:08]}  Kd5 {[%clk 0:00:39]} 53. Qxg7 {[%clk 0:00:08]}  Qd1+ {[%clk 0:00:38]} 54. Ka2 {[%clk 0:00:08]}  Qxc2+ {[%clk 0:00:37]} 55. Ka3 {[%clk 0:00:09]}  Qc1+ {[%clk 0:00:35]} 56. Kb4 {[%clk 0:00:09]}  Qd2+ {[%clk 0:00:34]} 57. Ka3 {[%clk 0:00:09]}  Qa5+ {[%clk 0:00:26]} 58. Kb2 {[%clk 0:00:09]}  b4 {[%clk 0:00:24]} 59. Qf7+ {[%clk 0:00:07]}  Kd4 {[%clk 0:00:25]} 60. Qc4+ {[%clk 0:00:08]}  Ke3 {[%clk 0:00:25]} 61. Qc1+ {[%clk 0:00:04]}  Ke2 {[%clk 0:00:22]} 62. Qc4+ {[%clk 0:00:02]}  Bd3 {[%clk 0:00:23]} 63. Qe6+ {[%clk 0:00:02]}  Kd1 {[%clk 0:00:23]} 64. Qxf6 {[%clk 0:00:03]}  Qa3# {[%clk 0:00:22]} 0-1


[Site "https://www.chess.com"]

[Event "Titled Tuesday Blitz August 1 Early 2023"]
[White "Rosenberg, Evan S"]
[Black "Xavier_mompel"]
[WhiteFideId "2019299"]
[WhiteElo "2394"]
[BlackElo "2290"]
[Result "0-1"]
[Round "10"]
[TimeControl "180+1"]
[Date "2023.08.01"]
[WhiteClock "0:00:05"]
[BlackClock "0:00:27"]
[Board "136"]

1. e4 {[%clk 0:03:00]}  c5 {[%clk 0:02:59]} 2. Nc3 {[%clk 0:03:00]}  e6 {[%clk 0:02:59]} 3. Nge2 {[%clk 0:02:59]}  Nc6 {[%clk 0:02:59]} 4. g3 {[%clk 0:02:57]}  Qc7 {[%clk 0:02:58]} 5. Bg2 {[%clk 0:02:55]}  a6 {[%clk 0:02:57]} 6. O-O {[%clk 0:02:52]}  Nf6 {[%clk 0:02:55]} 7. d4 {[%clk 0:02:49]}  cxd4 {[%clk 0:02:53]} 8. Nxd4 {[%clk 0:02:49]}  d6 {[%clk 0:02:45]} 9. Bg5 {[%clk 0:02:31]}  Be7 {[%clk 0:02:44]} 10. Nxc6 {[%clk 0:02:19]}  bxc6 {[%clk 0:02:45]} 11. h4 {[%clk 0:01:57]}  h6 {[%clk 0:02:37]} 12. Bc1 {[%clk 0:01:47]}  e5 {[%clk 0:02:24]} 13. b3 {[%clk 0:01:47]}  Be6 {[%clk 0:02:21]} 14. a4 {[%clk 0:01:43]}  Rd8 {[%clk 0:02:15]} 15. Qe2 {[%clk 0:01:40]}  d5 {[%clk 0:02:08]} 16. Qxa6 {[%clk 0:01:35]}  d4 {[%clk 0:01:44]} 17. Ne2 {[%clk 0:01:29]}  O-O {[%clk 0:01:44]} 18. Qd3 {[%clk 0:01:04]}  c5 {[%clk 0:01:40]} 19. Ba3 {[%clk 0:00:43]}  c4 {[%clk 0:01:37]} 20. Qd2 {[%clk 0:00:34]}  d3 {[%clk 0:01:16]} 21. cxd3 {[%clk 0:00:27]}  Rxd3 {[%clk 0:01:08]} 22. Qc2 {[%clk 0:00:25]}  Rfd8 {[%clk 0:00:56]} 23. Bxe7 {[%clk 0:00:24]}  Qxe7 {[%clk 0:00:57]} 24. Rad1 {[%clk 0:00:15]}  Rxd1 {[%clk 0:00:46]} 25. Rxd1 {[%clk 0:00:15]}  cxb3 {[%clk 0:00:42]} 26. Rxd8+ {[%clk 0:00:14]}  Qxd8 {[%clk 0:00:42]} 27. Qb2 {[%clk 0:00:14]}  Qd1+ {[%clk 0:00:41]} 28. Bf1 {[%clk 0:00:09]}  Bh3 {[%clk 0:00:36]} 29. Qc1 {[%clk 0:00:09]}  Qxc1 {[%clk 0:00:28]} 30. Nxc1 {[%clk 0:00:05]}  b2 {[%clk 0:00:27]} 0-1


[Site "https://www.chess.com"]

[Event "Titled Tuesday Blitz August 1 Early 2023"]
[White "Rodriguez Santiago, Jaime"]
[Black "Putri, Regita Desyari"]
[WhiteFideId "3100898"]
[BlackFideId "7109083"]
[WhiteElo "2369"]
[BlackElo "2247"]
[Result "1-0"]
[Round "10"]
[TimeControl "180+1"]
[Date "2023.08.01"]
[WhiteClock "0:00:53"]
[BlackClock "0:00:01"]
[Board "140"]

1. c4 {[%clk 0:03:00]}  e5 {[%clk 0:02:59]} 2. Nc3 {[%clk 0:02:58]}  Nf6 {[%clk 0:02:59]} 3. g3 {[%clk 0:02:58]}  d5 {[%clk 0:02:59]} 4. cxd5 {[%clk 0:02:58]}  Nxd5 {[%clk 0:03:00]} 5. Bg2 {[%clk 0:02:58]}  Nb6 {[%clk 0:02:59]} 6. e3 {[%clk 0:02:57]}  Nc6 {[%clk 0:02:58]} 7. Nge2 {[%clk 0:02:58]}  Be7 {[%clk 0:02:57]} 8. O-O {[%clk 0:02:59]}  O-O {[%clk 0:02:54]} 9. f4 {[%clk 0:02:59]}  exf4 {[%clk 0:02:36]} 10. Nxf4 {[%clk 0:03:00]}  Ne5 {[%clk 0:02:24]} 11. h3 {[%clk 0:02:41]}  Nd3 {[%clk 0:02:22]} 12. Qe2 {[%clk 0:02:30]}  Bf5 {[%clk 0:02:07]} 13. g4 {[%clk 0:02:23]}  Nxf4 {[%clk 0:02:01]} 14. Rxf4 {[%clk 0:02:23]}  Bd3 {[%clk 0:01:51]} 15. Qf2 {[%clk 0:02:20]}  Bd6 {[%clk 0:01:51]} 16. Rd4 {[%clk 0:02:17]}  Ba6 {[%clk 0:01:51]} 17. b4 {[%clk 0:02:09]}  c6 {[%clk 0:01:40]} 18. b5 {[%clk 0:01:53]}  Bxb5 {[%clk 0:01:37]} 19. Nxb5 {[%clk 0:01:39]}  cxb5 {[%clk 0:01:38]} 20. Ba3 {[%clk 0:01:33]}  Bxa3 {[%clk 0:01:11]} 21. Rxd8 {[%clk 0:01:31]}  Raxd8 {[%clk 0:01:12]} 22. Bxb7 {[%clk 0:01:27]}  Nc4 {[%clk 0:00:59]} 23. d4 {[%clk 0:01:24]}  b4 {[%clk 0:00:49]} 24. Rf1 {[%clk 0:01:19]}  a5 {[%clk 0:00:45]} 25. e4 {[%clk 0:01:13]}  Kh8 {[%clk 0:00:34]} 26. Bd5 {[%clk 0:01:08]}  Nd6 {[%clk 0:00:28]} 27. Qe2 {[%clk 0:01:04]}  f6 {[%clk 0:00:16]} 28. Qa6 {[%clk 0:00:56]}  Rde8 {[%clk 0:00:01]} 29. Qxd6 {[%clk 0:00:53]} 1-0


[Site "https://www.chess.com"]

[Event "Titled Tuesday Blitz August 1 Early 2023"]
[White "robertoalejandro10"]
[Black "Levitan, Caleb Levi"]
[BlackFideId "14332620"]
[WhiteElo "2533"]
[BlackElo "2292"]
[Result "1-0"]
[Round "10"]
[TimeControl "180+1"]
[Date "2023.08.01"]
[WhiteClock "0:00:10"]
[BlackClock "0:00:02"]
[Board "143"]

1. e4 {[%clk 0:03:00]}  e5 {[%clk 0:02:59]} 2. Nf3 {[%clk 0:02:58]}  Nc6 {[%clk 0:02:59]} 3. Bc4 {[%clk 0:02:58]}  Bc5 {[%clk 0:02:58]} 4. c3 {[%clk 0:02:52]}  Nf6 {[%clk 0:02:58]} 5. d3 {[%clk 0:02:44]}  O-O {[%clk 0:02:57]} 6. O-O {[%clk 0:02:40]}  d5 {[%clk 0:02:55]} 7. exd5 {[%clk 0:02:35]}  Nxd5 {[%clk 0:02:54]} 8. d4 {[%clk 0:02:24]}  exd4 {[%clk 0:02:48]} 9. cxd4 {[%clk 0:02:25]}  Bb6 {[%clk 0:02:39]} 10. Nc3 {[%clk 0:02:23]}  Be6 {[%clk 0:02:28]} 11. Bb3 {[%clk 0:02:12]}  h6 {[%clk 0:02:15]} 12. Be3 {[%clk 0:01:59]}  Nxe3 {[%clk 0:02:10]} 13. fxe3 {[%clk 0:02:00]}  Bxb3 {[%clk 0:02:08]} 14. Qxb3 {[%clk 0:02:00]}  Qd6 {[%clk 0:01:48]} 15. Rfe1 {[%clk 0:01:34]}  Ba5 {[%clk 0:01:29]} 16. Rad1 {[%clk 0:01:29]}  Bxc3 {[%clk 0:01:27]} 17. bxc3 {[%clk 0:01:28]}  b6 {[%clk 0:01:23]} 18. e4 {[%clk 0:01:25]}  Rfe8 {[%clk 0:01:09]} 19. e5 {[%clk 0:01:17]}  Qg6 {[%clk 0:01:05]} 20. Rf1 {[%clk 0:01:12]}  Ne7 {[%clk 0:00:53]} 21. Rf2 {[%clk 0:00:53]}  Nf5 {[%clk 0:00:47]} 22. Rdf1 {[%clk 0:00:52]}  Rf8 {[%clk 0:00:39]} 23. Nd2 {[%clk 0:00:43]}  Ne3 {[%clk 0:00:32]} 24. Re1 {[%clk 0:00:42]}  Ng4 {[%clk 0:00:26]} 25. Rfe2 {[%clk 0:00:42]}  h5 {[%clk 0:00:10]} 26. e6 {[%clk 0:00:35]}  h4 {[%clk 0:00:05]} 27. e7 {[%clk 0:00:32]}  Rfe8 {[%clk 0:00:05]} 28. h3 {[%clk 0:00:27]}  Nf6 {[%clk 0:00:04]} 29. Nf3 {[%clk 0:00:26]}  Qg3 {[%clk 0:00:03]} 30. Re3 {[%clk 0:00:19]}  Nh5 {[%clk 0:00:02]} 31. Ne5 {[%clk 0:00:16]}  Qf4 {[%clk 0:00:02]} 32. Rf3 {[%clk 0:00:14]}  Qd2 {[%clk 0:00:02]} 33. Qxf7+ {[%clk 0:00:13]}  Kh7 {[%clk 0:00:02]} 34. Qxh5+ {[%clk 0:00:13]}  Kg8 {[%clk 0:00:03]} 35. Ref1 {[%clk 0:00:12]}  Rxe7 {[%clk 0:00:03]} 36. Rf8+ {[%clk 0:00:08]}  Rxf8 {[%clk 0:00:02]} 37. Rxf8+ {[%clk 0:00:09]}  Kxf8 {[%clk 0:00:02]} 38. Qh8# {[%clk 0:00:10]} 1-0


[Site "https://www.chess.com"]

[Event "Titled Tuesday Blitz August 1 Early 2023"]
[White "Girya, Olga"]
[Black "Fernandez Siles, Luis"]
[WhiteFideId "4195752"]
[BlackFideId "2209420"]
[WhiteElo "2461"]
[BlackElo "2290"]
[Result "1-0"]
[Round "10"]
[TimeControl "180+1"]
[Date "2023.08.01"]
[WhiteClock "0:00:20"]
[BlackClock "0:00:07"]
[Board "144"]

1. d4 {[%clk 0:03:00]}  Nf6 {[%clk 0:02:58]} 2. Nf3 {[%clk 0:03:01]}  g6 {[%clk 0:02:58]} 3. Bg5 {[%clk 0:03:01]}  Bg7 {[%clk 0:02:56]} 4. Nbd2 {[%clk 0:03:01]}  O-O {[%clk 0:02:54]} 5. c3 {[%clk 0:03:01]}  d5 {[%clk 0:02:51]} 6. e3 {[%clk 0:03:01]}  b6 {[%clk 0:02:51]} 7. Bd3 {[%clk 0:02:59]}  Ba6 {[%clk 0:02:48]} 8. Bxa6 {[%clk 0:02:57]}  Nxa6 {[%clk 0:02:48]} 9. O-O {[%clk 0:02:55]}  c5 {[%clk 0:02:47]} 10. a4 {[%clk 0:02:47]}  h6 {[%clk 0:02:30]} 11. Bf4 {[%clk 0:02:45]}  Nh5 {[%clk 0:02:25]} 12. Bg3 {[%clk 0:02:41]}  Nxg3 {[%clk 0:02:23]} 13. hxg3 {[%clk 0:02:42]}  Nb8 {[%clk 0:02:14]} 14. a5 {[%clk 0:02:40]}  Nd7 {[%clk 0:02:12]} 15. Qa4 {[%clk 0:02:38]}  e5 {[%clk 0:01:54]} 16. dxe5 {[%clk 0:02:34]}  Nxe5 {[%clk 0:01:53]} 17. Nxe5 {[%clk 0:02:34]}  Bxe5 {[%clk 0:01:53]} 18. Nf3 {[%clk 0:02:33]}  Bg7 {[%clk 0:01:46]} 19. Rfd1 {[%clk 0:02:33]}  Re8 {[%clk 0:01:18]} 20. Qc6 {[%clk 0:02:31]}  bxa5 {[%clk 0:00:52]} 21. Rxd5 {[%clk 0:02:29]}  Qb6 {[%clk 0:00:50]} 22. Rxc5 {[%clk 0:02:02]}  Qxb2 {[%clk 0:00:47]} 23. Rcxa5 {[%clk 0:01:59]}  Qxc3 {[%clk 0:00:41]} 24. Qa6 {[%clk 0:01:08]}  Re6 {[%clk 0:00:30]} 25. Qb7 {[%clk 0:01:07]}  Rd8 {[%clk 0:00:17]} 26. Qxa7 {[%clk 0:00:38]}  Qc2 {[%clk 0:00:15]} 27. Rf1 {[%clk 0:00:30]}  Rd1 {[%clk 0:00:14]} 28. Rxd1 {[%clk 0:00:22]}  Qxd1+ {[%clk 0:00:15]} 29. Kh2 {[%clk 0:00:22]}  Rc6 {[%clk 0:00:14]} 30. Qa8+ {[%clk 0:00:20]}  Kh7 {[%clk 0:00:07]} 31. Qxc6 {[%clk 0:00:20]} 1-0


[Site "https://www.chess.com"]

[Event "Titled Tuesday Blitz August 1 Early 2023"]
[White "rionelG"]
[Black "Schlecht, Daniel, Dr."]
[BlackFideId "4623959"]
[WhiteElo "2290"]
[BlackElo "2413"]
[Result "1-0"]
[Round "10"]
[TimeControl "180+1"]
[Date "2023.08.01"]
[WhiteClock "0:02:20"]
[BlackClock "0:01:54"]
[Board "145"]

1. e4 {[%clk 0:03:00]}  c6 {[%clk 0:02:59]} 2. d4 {[%clk 0:03:00]}  d5 {[%clk 0:03:00]} 3. e5 {[%clk 0:03:01]}  Bf5 {[%clk 0:02:59]} 4. Nf3 {[%clk 0:03:01]}  e6 {[%clk 0:02:58]} 5. Be2 {[%clk 0:03:01]}  c5 {[%clk 0:02:58]} 6. Be3 {[%clk 0:02:59]}  Qb6 {[%clk 0:02:52]} 7. Nc3 {[%clk 0:02:43]}  Nc6 {[%clk 0:02:49]} 8. O-O {[%clk 0:02:43]}  Qxb2 {[%clk 0:02:35]} 9. Qe1 {[%clk 0:02:40]}  cxd4 {[%clk 0:02:34]} 10. Nxd4 {[%clk 0:02:36]}  Nxd4 {[%clk 0:02:29]} 11. Bxd4 {[%clk 0:02:35]}  Qa3 {[%clk 0:01:58]} 12. Nb5 {[%clk 0:02:22]}  Qa5 {[%clk 0:01:54]} 13. Qxa5 {[%clk 0:02:20]} 1-0


[Site "https://www.chess.com"]

[Event "Titled Tuesday Blitz August 1 Early 2023"]
[White "Joshi, Pankaj"]
[Black "Avazkhonov, Alikhon"]
[WhiteFideId "5006210"]
[BlackFideId "14208504"]
[WhiteElo "2267"]
[BlackElo "2403"]
[Result "0-1"]
[Round "10"]
[TimeControl "180+1"]
[Date "2023.08.01"]
[WhiteClock "0:00:00"]
[BlackClock "0:00:03"]
[Board "146"]

1. e4 {[%clk 0:03:00]}  c5 {[%clk 0:02:56]} 2. Nc3 {[%clk 0:03:01]}  d6 {[%clk 0:02:57]} 3. f4 {[%clk 0:03:00]}  Nf6 {[%clk 0:02:57]} 4. Nf3 {[%clk 0:03:00]}  a6 {[%clk 0:02:55]} 5. d3 {[%clk 0:02:53]}  Nc6 {[%clk 0:02:52]} 6. g3 {[%clk 0:02:54]}  b5 {[%clk 0:02:52]} 7. Bg2 {[%clk 0:02:54]}  Bb7 {[%clk 0:02:50]} 8. O-O {[%clk 0:02:55]}  g6 {[%clk 0:02:50]} 9. h3 {[%clk 0:02:51]}  Bg7 {[%clk 0:02:49]} 10. g4 {[%clk 0:02:51]}  O-O {[%clk 0:02:48]} 11. Ne2 {[%clk 0:02:52]}  c4 {[%clk 0:02:45]} 12. Be3 {[%clk 0:02:42]}  Rc8 {[%clk 0:02:20]} 13. Ng3 {[%clk 0:02:40]}  cxd3 {[%clk 0:02:15]} 14. cxd3 {[%clk 0:02:40]}  Nb4 {[%clk 0:02:16]} 15. Ne1 {[%clk 0:02:30]}  Nd7 {[%clk 0:02:09]} 16. a3 {[%clk 0:02:29]}  Nc6 {[%clk 0:02:05]} 17. d4 {[%clk 0:02:25]}  Na5 {[%clk 0:02:01]} 18. Qe2 {[%clk 0:01:57]}  Nc4 {[%clk 0:02:00]} 19. Bf2 {[%clk 0:01:58]}  Qb6 {[%clk 0:01:42]} 20. Nf3 {[%clk 0:01:45]}  Rc7 {[%clk 0:01:40]} 21. e5 {[%clk 0:01:18]}  dxe5 {[%clk 0:01:37]} 22. dxe5 {[%clk 0:01:19]}  Qa5 {[%clk 0:01:34]} 23. b3 {[%clk 0:01:14]}  Bxf3 {[%clk 0:01:31]} 24. Bxf3 {[%clk 0:01:11]}  Nd2 {[%clk 0:01:31]} 25. b4 {[%clk 0:01:03]}  Nxf3+ {[%clk 0:01:29]} 26. Qxf3 {[%clk 0:01:04]}  Qa4 {[%clk 0:01:30]} 27. Ne4 {[%clk 0:00:56]}  Rfc8 {[%clk 0:01:27]} 28. Nc5 {[%clk 0:00:55]}  Nxc5 {[%clk 0:01:23]} 29. Bxc5 {[%clk 0:00:56]}  e6 {[%clk 0:01:18]} 30. f5 {[%clk 0:00:56]}  Bf8 {[%clk 0:01:16]} 31. Bd6 {[%clk 0:00:50]}  Rc3 {[%clk 0:01:04]} 32. Qb7 {[%clk 0:00:42]}  Qc2 {[%clk 0:00:43]} 33. Rf2 {[%clk 0:00:24]}  Rg3+ {[%clk 0:00:43]} 34. Rg2 {[%clk 0:00:16]}  Rcc3 {[%clk 0:00:15]} 35. fxe6 {[%clk 0:00:07]}  fxe6 {[%clk 0:00:11]} 36. Rf1 {[%clk 0:00:04]}  Rxg2+ {[%clk 0:00:06]} 37. Qxg2 {[%clk 0:00:00]}  Bxd6 {[%clk 0:00:03]} 0-1


[Site "https://www.chess.com"]